[Event "Live Chess"]
[Site "Chess.com"]
[Date "2023.05.21"]
[Round "-"]
[White "KeithArkell"]
[Black "Pablo_dmp"]
[Result "1-0"]
[WhiteElo "2573"]
[BlackElo "1862"]
[TimeControl "300"]
[EndTime "18:38:08 PDT"]
[Termination "KeithArkell won on time"]

1. d4 {[%clk 0:04:52.5]} 1... d5 {[%clk 0:04:57.3]} 2. c4 {[%clk 0:04:48.9]}
2... e6 {[%clk 0:04:56.3]} 3. cxd5 {[%clk 0:04:47.2]} 3... exd5 {[%clk
0:04:53.1]} 4. Nc3 {[%clk 0:04:45.9]} 4... Nf6 {[%clk 0:04:51.2]} 5. Nf3 {[%clk
0:04:44.7]} 5... Bf5 {[%clk 0:04:48.4]} 6. Bg5 {[%clk 0:04:43.4]} 6... Be7
{[%clk 0:04:46.4]} 7. Qb3 {[%clk 0:04:42]} 7... Qc8 {[%clk 0:04:42.1]} 8. Bxf6
{[%clk 0:04:39.9]} 8... Bxf6 {[%clk 0:04:35.2]} 9. Nxd5 {[%clk 0:04:38.8]} 9...
Nd7 {[%clk 0:04:27.9]} 10. Rc1 {[%clk 0:04:36]} 10... c6 {[%clk 0:04:21.8]} 11.
e3 {[%clk 0:04:35.1]} 11... O-O {[%clk 0:04:18.1]} 12. Bd3 {[%clk 0:04:30.1]}
12... Be6 {[%clk 0:04:13.6]} 13. Nxf6+ {[%clk 0:04:28.6]} 13... Nxf6 {[%clk
0:04:12.7]} 14. Qc2 {[%clk 0:04:25]} 14... Qd7 {[%clk 0:04:04.3]} 15. O-O {[%clk
0:04:20.9]} 15... Rfe8 {[%clk 0:03:43.7]} 16. b3 {[%clk 0:04:18.3]} 16... Qd6
{[%clk 0:03:39.3]} 17. Qc5 {[%clk 0:04:15.5]} 17... Qc7 {[%clk 0:03:25.5]} 18.
h3 {[%clk 0:04:10.1]} 18... Qc8 {[%clk 0:03:17.3]} 19. Kh2 {[%clk 0:04:06.5]}
19... Qb8+ {[%clk 0:03:08.1]} 20. Qe5 {[%clk 0:04:05.1]} 20... Bd5 {[%clk
0:03:02.3]} 21. Qxb8 {[%clk 0:04:03.7]} 21... Raxb8 {[%clk 0:03:02.2]} 22. Rfe1
{[%clk 0:04:01.4]} 22... Ne4 {[%clk 0:02:45.9]} 23. Kg1 {[%clk 0:03:56.6]} 23...
a5 {[%clk 0:02:41.4]} 24. Bc4 {[%clk 0:03:55.1]} 24... Nf6 {[%clk 0:02:23.7]}
25. a3 {[%clk 0:03:52.4]} 25... Rbd8 {[%clk 0:02:14.3]} 26. Bxd5 {[%clk
0:03:51.1]} 26... Rxd5 {[%clk 0:02:13.5]} 27. Rc2 {[%clk 0:03:50.1]} 27... Rd6
{[%clk 0:02:03.4]} 28. Rec1 {[%clk 0:03:48.5]} 28... h6 {[%clk 0:02:00.3]} 29.
Ne5 {[%clk 0:03:46.7]} 29... Nd7 {[%clk 0:01:53.8]} 30. Nxd7 {[%clk 0:03:44.9]}
30... Rxd7 {[%clk 0:01:53.7]} 31. Rc5 {[%clk 0:03:43.5]} 31... Ra8 {[%clk
0:01:40.8]} 32. g4 {[%clk 0:03:42]} 32... Rd6 {[%clk 0:01:35.4]} 33. Kg2 {[%clk
0:03:40.3]} 33... Kh7 {[%clk 0:01:33.3]} 34. b4 {[%clk 0:03:39.5]} 34... axb4
{[%clk 0:01:30.4]} 35. axb4 {[%clk 0:03:39.4]} 35... Ra2 {[%clk 0:01:27.5]} 36.
R1c2 {[%clk 0:03:38.4]} 36... Rxc2 {[%clk 0:01:24.8]} 37. Rxc2 {[%clk
0:03:38.3]} 37... Kg6 {[%clk 0:01:23.3]} 38. Rc5 {[%clk 0:03:36.4]} 38... Kf6
{[%clk 0:01:21]} 39. b5 {[%clk 0:03:35.4]} 39... Ke6 {[%clk 0:01:08.1]} 40. bxc6
{[%clk 0:03:33.7]} 40... bxc6 {[%clk 0:01:03.8]} 41. h4 {[%clk 0:03:30.8]} 41...
g6 {[%clk 0:00:55.4]} 42. Kg3 {[%clk 0:03:29]} 42... f5 {[%clk 0:00:52.3]} 43.
h5 {[%clk 0:03:27.3]} 43... gxh5 {[%clk 0:00:44.5]} 44. gxf5+ {[%clk 0:03:22.6]}
44... Kf6 {[%clk 0:00:43.3]} 45. Kh4 {[%clk 0:03:21.6]} 45... Rd5 {[%clk
0:00:39.9]} 46. Rxc6+ {[%clk 0:03:19.3]} 46... Kxf5 {[%clk 0:00:38.9]} 47. Rxh6
{[%clk 0:03:17.9]} 47... Ke4 {[%clk 0:00:37.2]} 48. Rxh5 {[%clk 0:03:16.9]}
48... Rd8 {[%clk 0:00:33.7]} 49. Re5+ {[%clk 0:03:13.8]} 49... Kf3 {[%clk
0:00:32.3]} 50. Rf5+ {[%clk 0:03:13.1]} 50... Ke4 {[%clk 0:00:29.7]} 51. Rf4+
{[%clk 0:03:12.1]} 51... Kd3 {[%clk 0:00:28.2]} 52. Kg3 {[%clk 0:03:11.6]} 52...
Rg8+ {[%clk 0:00:25.2]} 53. Rg4 {[%clk 0:03:09.4]} 53... Rf8 {[%clk 0:00:23.7]}
54. d5 {[%clk 0:03:06.8]} 54... Ke2 {[%clk 0:00:21.3]} 55. Rf4 {[%clk
0:03:04.9]} 55... Rg8+ {[%clk 0:00:18.4]} 56. Kh4 {[%clk 0:03:03.7]} 56... Kf1
{[%clk 0:00:11.9]} 57. d6 {[%clk 0:03:01.7]} 57... Rh8+ {[%clk 0:00:09.6]} 58.
Kg5 {[%clk 0:03:00.6]} 58... Rc8 {[%clk 0:00:06]} 59. d7 {[%clk 0:02:59.1]}
59... Rd8 {[%clk 0:00:05.9]} 60. Rf7 {[%clk 0:02:57.4]} 1-0

[Event "Live Chess"]
[Site "Chess.com"]
[Date "2023.05.21"]
[Round "-"]
[White "raminguy"]
[Black "grillage"]
[Result "0-1"]
[WhiteElo "1925"]
[BlackElo "1809"]
[TimeControl "300"]
[EndTime "18:38:11 PDT"]
[Termination "grillage won on time"]

1. d3 {[%clk 0:04:55.8]} 1... Nf6 {[%clk 0:04:57.6]} 2. e4 {[%clk 0:04:54.3]}
2... d5 {[%clk 0:04:54.6]} 3. exd5 {[%clk 0:04:52.6]} 3... Nxd5 {[%clk
0:04:52.6]} 4. g3 {[%clk 0:04:51.5]} 4... c6 {[%clk 0:04:50.6]} 5. Bg2 {[%clk
0:04:50.3]} 5... e5 {[%clk 0:04:49.5]} 6. Nf3 {[%clk 0:04:44]} 6... Bd6 {[%clk
0:04:47.5]} 7. O-O {[%clk 0:04:42.4]} 7... O-O {[%clk 0:04:46.2]} 8. Re1 {[%clk
0:04:40.9]} 8... f6 {[%clk 0:04:43.9]} 9. b3 {[%clk 0:04:36.5]} 9... Kh8 {[%clk
0:04:35.3]} 10. Bb2 {[%clk 0:04:35.5]} 10... Bg4 {[%clk 0:04:32.5]} 11. h3
{[%clk 0:04:30.3]} 11... Bh5 {[%clk 0:04:30.5]} 12. g4 {[%clk 0:04:28.6]} 12...
Bf7 {[%clk 0:04:29.6]} 13. Nc3 {[%clk 0:04:25.5]} 13... Nd7 {[%clk 0:04:22.3]}
14. Nxd5 {[%clk 0:04:22.8]} 14... cxd5 {[%clk 0:04:21.6]} 15. a4 {[%clk
0:04:17.4]} 15... d4 {[%clk 0:04:19.3]} 16. Nd2 {[%clk 0:04:13.2]} 16... Bb4
{[%clk 0:04:13.8]} 17. Re2 {[%clk 0:04:10]} 17... Bxd2 {[%clk 0:04:11.9]} 18.
Qxd2 {[%clk 0:04:08.7]} 18... Rc8 {[%clk 0:04:10.8]} 19. c3 {[%clk 0:04:06.7]}
19... dxc3 {[%clk 0:04:04.3]} 20. Bxc3 {[%clk 0:04:04.6]} 20... Nc5 {[%clk
0:03:52.6]} 21. b4 {[%clk 0:03:35.5]} 21... Nb3 {[%clk 0:03:48.5]} 22. Qb2
{[%clk 0:03:30.7]} 22... Nxa1 {[%clk 0:03:46.9]} 23. Qxa1 {[%clk 0:03:29.2]}
23... Qxd3 {[%clk 0:03:45]} 24. Re3 {[%clk 0:03:25.4]} 24... Qd7 {[%clk
0:03:28.4]} 25. Re1 {[%clk 0:03:15.5]} 25... Rfd8 {[%clk 0:03:24.6]} 26. a5
{[%clk 0:03:07.6]} 26... b6 {[%clk 0:03:15.4]} 27. axb6 {[%clk 0:03:02.9]} 27...
axb6 {[%clk 0:03:14.7]} 28. Be4 {[%clk 0:02:49.8]} 28... Bg6 {[%clk 0:03:05.4]}
29. Bg2 {[%clk 0:02:35.9]} 29... Qd3 {[%clk 0:03:00.2]} 30. Bb2 {[%clk
0:02:29.4]} 30... Rc2 {[%clk 0:02:54.7]} 31. Bc1 {[%clk 0:02:27.5]} 31... Qd4
{[%clk 0:02:49.3]} 32. Be3 {[%clk 0:02:25.8]} 32... Qxa1 {[%clk 0:02:47.5]} 33.
Rxa1 {[%clk 0:02:25.7]} 33... b5 {[%clk 0:02:38.2]} 34. Bc5 {[%clk 0:02:18.8]}
34... h5 {[%clk 0:02:31.3]} 35. Ra5 {[%clk 0:02:09]} 35... hxg4 {[%clk
0:02:26.3]} 36. Rxb5 {[%clk 0:02:02.4]} 36... gxh3 {[%clk 0:02:23.6]} 37. Bxh3
{[%clk 0:02:01.5]} 37... Be4 {[%clk 0:02:13.8]} 38. Bg2 {[%clk 0:01:33.5]} 38...
Bxg2 {[%clk 0:02:09.5]} 39. Kxg2 {[%clk 0:01:33.4]} 39... Kh7 {[%clk 0:02:02]}
40. Rb7 {[%clk 0:01:31.4]} 40... Rcd2 {[%clk 0:01:53.8]} 41. Re7 {[%clk
0:01:22.7]} 41... R8d7 {[%clk 0:01:47.9]} 42. Re6 {[%clk 0:01:18.5]} 42... Rb7
{[%clk 0:01:45.3]} 43. Ra6 {[%clk 0:01:09.6]} 43... Kg6 {[%clk 0:01:41.7]} 44.
Ra3 {[%clk 0:01:04.3]} 44... Kf5 {[%clk 0:01:38.9]} 45. Kf3 {[%clk 0:00:56.2]}
45... g6 {[%clk 0:01:33.9]} 46. Ra5 {[%clk 0:00:51.7]} 46... Rb2 {[%clk
0:01:31.2]} 47. Ra4 {[%clk 0:00:49.2]} 47... Ke6 {[%clk 0:01:27.8]} 48. Ra6+
{[%clk 0:00:47.2]} 48... Kf5 {[%clk 0:01:23.7]} 49. Ra4 {[%clk 0:00:46]} 49...
e4+ {[%clk 0:01:17.2]} 50. Ke3 {[%clk 0:00:44.6]} 50... Rb3+ {[%clk 0:01:11.9]}
51. Ke2 {[%clk 0:00:43.4]} 51... g5 {[%clk 0:01:02.1]} 52. Ra5 {[%clk
0:00:41.6]} 52... Kg4 {[%clk 0:00:55.9]} 53. Ra6 {[%clk 0:00:39.6]} 53... f5
{[%clk 0:00:53.8]} 54. Rg6 {[%clk 0:00:31.2]} 54... R3xb4 {[%clk 0:00:50.1]} 55.
Bxb4 {[%clk 0:00:23.7]} 55... Rxb4 {[%clk 0:00:49.1]} 56. Rg8 {[%clk 0:00:21.7]}
56... f4 {[%clk 0:00:47.3]} 57. Re8 {[%clk 0:00:18.2]} 57... Rb2+ {[%clk
0:00:46.7]} 58. Ke1 {[%clk 0:00:16.8]} 58... Kf3 {[%clk 0:00:46.1]} 59. Re5
{[%clk 0:00:08.8]} 59... Re2+ {[%clk 0:00:41.1]} 60. Kf1 {[%clk 0:00:05.9]}
60... Rxf2+ {[%clk 0:00:40.2]} 61. Kg1 {[%clk 0:00:05]} 61... e3 {[%clk
0:00:39.6]} 62. Rxg5 {[%clk 0:00:01.9]} 62... e2 {[%clk 0:00:36.1]} 63. Re5
{[%clk 0:00:00.7]} 63... Rf1+ {[%clk 0:00:33.7]} 0-1

[Event "Live Chess"]
[Site "Chess.com"]
[Date "2023.05.21"]
[Round "-"]
[White "jimwad"]
[Black "Hussamalhaidar"]
[Result "0-1"]
[WhiteElo "1216"]
[BlackElo "1113"]
[TimeControl "300"]
[EndTime "18:38:39 PDT"]
[Termination "Hussamalhaidar won by resignation"]

1. d4 {[%clk 0:04:56.4]} 1... e5 {[%clk 0:04:53.5]} 2. dxe5 {[%clk 0:04:55.2]}
2... d6 {[%clk 0:04:52.2]} 3. exd6 {[%clk 0:04:54]} 3... Bxd6 {[%clk 0:04:50.6]}
4. Nc3 {[%clk 0:04:52.8]} 4... Nf6 {[%clk 0:04:48.7]} 5. Nf3 {[%clk 0:04:51.8]}
5... Nc6 {[%clk 0:04:47.6]} 6. Bg5 {[%clk 0:04:49.3]} 6... Bf5 {[%clk
0:04:45.5]} 7. e3 {[%clk 0:04:47.1]} 7... h6 {[%clk 0:04:40.2]} 8. Bh4 {[%clk
0:04:45.6]} 8... Qe7 {[%clk 0:04:38.2]} 9. Bb5 {[%clk 0:04:43.6]} 9... O-O-O
{[%clk 0:04:35.7]} 10. Bxc6 {[%clk 0:04:40.7]} 10... bxc6 {[%clk 0:04:31.4]} 11.
O-O {[%clk 0:04:39]} 11... Bxh2+ {[%clk 0:04:27.8]} 12. Kh1 {[%clk 0:04:37]}
12... Rxd1 {[%clk 0:04:27.1]} 13. Rfxd1 {[%clk 0:04:33.9]} 13... g5 {[%clk
0:04:24.4]} 14. Bg3 {[%clk 0:04:31.6]} 14... Bxg3 {[%clk 0:04:22.3]} 15. fxg3
{[%clk 0:04:30.7]} 15... Bxc2 {[%clk 0:04:18.4]} 0-1

[Event "Live Chess"]
[Site "Chess.com"]
[Date "2023.05.21"]
[Round "-"]
[White "therealab0ne"]
[Black "LiamBellwood"]
[Result "0-1"]
[WhiteElo "716"]
[BlackElo "2045"]
[TimeControl "300"]
[EndTime "18:38:40 PDT"]
[Termination "LiamBellwood won by resignation"]

1. e4 {[%clk 0:04:53.6]} 1... e6 {[%clk 0:04:59.9]} 2. d4 {[%clk 0:04:51.8]}
2... d5 {[%clk 0:04:59.4]} 3. e5 {[%clk 0:04:51.5]} 3... c5 {[%clk 0:04:58.5]}
4. Nf3 {[%clk 0:04:49.9]} 4... Nc6 {[%clk 0:04:58.4]} 5. Bb5 {[%clk 0:04:47.1]}
5... Bd7 {[%clk 0:04:57.5]} 6. Bxc6 {[%clk 0:04:46.1]} 6... Bxc6 {[%clk
0:04:57.4]} 7. c3 {[%clk 0:04:44.3]} 7... Ne7 {[%clk 0:04:56.8]} 8. O-O {[%clk
0:04:42.9]} 8... Nf5 {[%clk 0:04:56.4]} 9. h3 {[%clk 0:04:40.3]} 9... Qb6 {[%clk
0:04:53.5]} 10. Nbd2 {[%clk 0:04:32.2]} 10... cxd4 {[%clk 0:04:52.3]} 11. cxd4
{[%clk 0:04:31.3]} 11... Nxd4 {[%clk 0:04:52.2]} 12. Nxd4 {[%clk 0:04:13.5]}
12... Qxd4 {[%clk 0:04:52.1]} 13. Re1 {[%clk 0:04:00]} 13... Bc5 {[%clk
0:04:50.4]} 14. Qe2 {[%clk 0:03:43.6]} 14... a6 {[%clk 0:04:49.8]} 15. Nb3
{[%clk 0:03:28.1]} 15... Qb4 {[%clk 0:04:43.3]} 16. Nxc5 {[%clk 0:03:26.7]}
16... Qxc5 {[%clk 0:04:43.2]} 17. Be3 {[%clk 0:02:59.5]} 17... Qb5 {[%clk
0:04:38.4]} 18. Qxb5 {[%clk 0:02:57.1]} 18... Bxb5 {[%clk 0:04:38.3]} 19. Rac1
{[%clk 0:02:53]} 19... Kd7 {[%clk 0:04:37.9]} 20. Kh2 {[%clk 0:02:40.1]} 20...
Rac8 {[%clk 0:04:36.3]} 21. Rxc8 {[%clk 0:02:37.8]} 21... Rxc8 {[%clk
0:04:36.2]} 22. Kg3 {[%clk 0:02:37.1]} 22... f6 {[%clk 0:04:33.8]} 23. f4 {[%clk
0:02:32.7]} 23... Rc2 {[%clk 0:04:32.2]} 24. Bd4 {[%clk 0:02:26.5]} 24... f5
{[%clk 0:04:25.4]} 25. Re3 {[%clk 0:02:13.5]} 25... Bf1 {[%clk 0:04:12]} 26. Kh4
{[%clk 0:01:50]} 26... Rxg2 {[%clk 0:04:09.3]} 27. Bb6 {[%clk 0:01:39]} 27...
Be2 {[%clk 0:04:00.6]} 28. Rg3 {[%clk 0:01:33.2]} 28... Rxg3 {[%clk 0:03:54]}
29. Kxg3 {[%clk 0:01:32.2]} 29... Kc6 {[%clk 0:03:53]} 30. Bd4 {[%clk
0:01:20.1]} 30... Kb5 {[%clk 0:03:50.5]} 31. Kf2 {[%clk 0:01:17.6]} 31... Bd3
{[%clk 0:03:45.1]} 32. a3 {[%clk 0:01:05.3]} 32... Kc4 {[%clk 0:03:42.8]} 33.
Bc3 {[%clk 0:01:00.1]} 33... h6 {[%clk 0:03:34.6]} 34. h4 {[%clk 0:00:56.7]}
34... d4 {[%clk 0:03:26.1]} 35. Bb4 {[%clk 0:00:43.6]} 35... Kb3 {[%clk
0:03:01.9]} 36. Bf8 {[%clk 0:00:41]} 36... h5 {[%clk 0:02:59.9]} 37. Bxg7 {[%clk
0:00:29.9]} 37... Kxb2 {[%clk 0:02:58.5]} 38. Bf8 {[%clk 0:00:22.9]} 38... a5
{[%clk 0:02:57.8]} 39. Ke1 {[%clk 0:00:18.8]} 39... Kc2 {[%clk 0:02:57.2]} 40.
Kf2 {[%clk 0:00:17.8]} 40... Be4 {[%clk 0:02:56.4]} 41. Ke2 {[%clk 0:00:15.6]}
41... d3+ {[%clk 0:02:55.7]} 42. Ke3 {[%clk 0:00:14.2]} 42... d2 {[%clk
0:02:55.6]} 0-1

[Event "Live Chess"]
[Site "Chess.com"]
[Date "2023.05.21"]
[Round "-"]
[White "ViktorTheCoolBoy"]
[Black "LutherSullivan"]
[Result "1-0"]
[WhiteElo "2513"]
[BlackElo "2100"]
[TimeControl "300"]
[EndTime "18:38:42 PDT"]
[Termination "ViktorTheCoolBoy won by resignation"]

1. e4 {[%clk 0:04:57.4]} 1... c5 {[%clk 0:04:56.3]} 2. Nf3 {[%clk 0:04:56.3]}
2... Nc6 {[%clk 0:04:55.9]} 3. d4 {[%clk 0:04:53.6]} 3... cxd4 {[%clk
0:04:55.5]} 4. Nxd4 {[%clk 0:04:53.4]} 4... g6 {[%clk 0:04:54.6]} 5. c4 {[%clk
0:04:50.5]} 5... Bg7 {[%clk 0:04:53.8]} 6. Nc2 {[%clk 0:04:49.6]} 6... Nf6
{[%clk 0:04:52.9]} 7. Nc3 {[%clk 0:04:48.5]} 7... d6 {[%clk 0:04:51.6]} 8. Be2
{[%clk 0:04:47.7]} 8... O-O {[%clk 0:04:50.8]} 9. O-O {[%clk 0:04:46.8]} 9... b6
{[%clk 0:04:42.4]} 10. Be3 {[%clk 0:04:45.5]} 10... Bb7 {[%clk 0:04:41.6]} 11.
Qd2 {[%clk 0:04:44.3]} 11... Rc8 {[%clk 0:04:40]} 12. f3 {[%clk 0:04:42.7]}
12... Nd7 {[%clk 0:04:36.5]} 13. Rab1 {[%clk 0:04:38.5]} 13... a6 {[%clk
0:04:25.2]} 14. Rfc1 {[%clk 0:04:36.5]} 14... Re8 {[%clk 0:04:22.9]} 15. b4
{[%clk 0:04:34.4]} 15... Nce5 {[%clk 0:04:20.6]} 16. Na3 {[%clk 0:04:23.7]}
16... Qc7 {[%clk 0:03:45.3]} 17. Nd5 {[%clk 0:04:21.3]} 17... Bxd5 {[%clk
0:03:40.8]} 18. cxd5 {[%clk 0:04:20.1]} 18... Qb7 {[%clk 0:03:36.2]} 19. f4
{[%clk 0:04:16.8]} 19... b5 {[%clk 0:03:21.6]} 20. fxe5 {[%clk 0:04:15.1]} 20...
Nxe5 {[%clk 0:03:20.4]} 21. Rxc8 {[%clk 0:04:10.6]} 21... Rxc8 {[%clk
0:03:19.5]} 22. Rc1 {[%clk 0:04:10.1]} 22... Nc4 {[%clk 0:03:16.4]} 23. Nxc4
{[%clk 0:04:07.9]} 23... bxc4 {[%clk 0:03:15.3]} 24. Rxc4 {[%clk 0:04:07.2]}
24... Rxc4 {[%clk 0:03:12.7]} 25. Bxc4 {[%clk 0:04:07.1]} 25... a5 {[%clk
0:03:09.7]} 26. bxa5 {[%clk 0:04:04.7]} 26... Qb1+ {[%clk 0:03:08.4]} 27. Bf1
{[%clk 0:04:03.1]} 27... Qxe4 {[%clk 0:03:06.4]} 28. a6 {[%clk 0:04:02]} 28...
f5 {[%clk 0:02:59.5]} 29. a7 {[%clk 0:03:57.5]} 29... Qa4 {[%clk 0:02:56.5]} 30.
g3 {[%clk 0:03:50.3]} 30... g5 {[%clk 0:02:47.4]} 31. Qc1 {[%clk 0:03:47.2]}
31... f4 {[%clk 0:02:41.4]} 32. gxf4 {[%clk 0:03:44.6]} 32... gxf4 {[%clk
0:02:39.3]} 33. Qc8+ {[%clk 0:03:42.9]} 33... Kf7 {[%clk 0:02:38.3]} 34. a8=Q
{[%clk 0:03:41.5]} 34... Qe4 {[%clk 0:02:35]} 35. Qg8+ {[%clk 0:03:35.2]} 35...
Kf6 {[%clk 0:02:29.9]} 36. Bf2 {[%clk 0:03:31]} 36... Qg6+ {[%clk 0:02:28.2]}
37. Bg3 {[%clk 0:03:27.1]} 37... fxg3 {[%clk 0:02:22.2]} 38. Qe6+ {[%clk
0:03:25.7]} 38... Kg5 {[%clk 0:02:20.7]} 39. Qxg6+ {[%clk 0:03:23.9]} 1-0

[Event "Live Chess"]
[Site "Chess.com"]
[Date "2023.05.21"]
[Round "-"]
[White "Long1968"]
[Black "Duke_of_Bebington"]
[Result "0-1"]
[WhiteElo "1056"]
[BlackElo "1582"]
[TimeControl "300"]
[EndTime "18:38:55 PDT"]
[Termination "Duke_of_Bebington won on time"]

1. e4 {[%clk 0:04:51.9]} 1... e5 {[%clk 0:04:58.8]} 2. f4 {[%clk 0:04:48.8]}
2... exf4 {[%clk 0:04:57.2]} 3. Bc4 {[%clk 0:04:46]} 3... Qh4+ {[%clk
0:04:53.8]} 4. Kf1 {[%clk 0:04:42.9]} 4... Nc6 {[%clk 0:04:44.3]} 5. Nf3 {[%clk
0:04:35.6]} 5... Qe7 {[%clk 0:04:35.4]} 6. Nc3 {[%clk 0:04:29.6]} 6... d6 {[%clk
0:04:29.7]} 7. d4 {[%clk 0:04:23.7]} 7... g5 {[%clk 0:04:25.1]} 8. h3 {[%clk
0:03:55.6]} 8... Bg7 {[%clk 0:04:20.5]} 9. Nd5 {[%clk 0:03:19.2]} 9... Qd7
{[%clk 0:04:07.9]} 10. Nxg5 {[%clk 0:03:11.5]} 10... h6 {[%clk 0:03:55.6]} 11.
Nf3 {[%clk 0:02:42.1]} 11... Nge7 {[%clk 0:03:45.8]} 12. Nxf4 {[%clk 0:02:32.2]}
12... O-O {[%clk 0:03:38.7]} 13. c3 {[%clk 0:02:20.7]} 13... a6 {[%clk
0:03:32.3]} 14. b4 {[%clk 0:01:40.6]} 14... b5 {[%clk 0:03:29.4]} 15. Bb3 {[%clk
0:01:27.8]} 15... Bb7 {[%clk 0:03:27.9]} 16. Qd3 {[%clk 0:01:00.1]} 16... Rae8
{[%clk 0:03:09.4]} 17. Nh4 {[%clk 0:00:32.1]} 17... Kh8 {[%clk 0:02:56.2]} 18.
e5 {[%clk 0:00:16.3]} 18... dxe5 {[%clk 0:02:51.3]} 19. Bc2 {[%clk 0:00:11.8]}
19... f5 {[%clk 0:02:45.9]} 20. Nfg6+ {[%clk 0:00:06.6]} 20... Nxg6 {[%clk
0:02:36.2]} 21. Nxg6+ {[%clk 0:00:04]} 21... Kg8 {[%clk 0:02:34.2]} 0-1

[Event "Live Chess"]
[Site "Chess.com"]
[Date "2023.05.21"]
[Round "-"]
[White "manthanit"]
[Black "IgorSchukin"]
[Result "0-1"]
[WhiteElo "1051"]
[BlackElo "1783"]
[TimeControl "300"]
[EndTime "18:39:10 PDT"]
[Termination "IgorSchukin won by resignation"]

1. e4 {[%clk 0:04:59.4]} 1... c5 {[%clk 0:04:58.1]} 2. d4 {[%clk 0:04:56.3]}
2... cxd4 {[%clk 0:04:56.4]} 3. Qxd4 {[%clk 0:04:55.9]} 3... Nc6 {[%clk
0:04:54.1]} 4. Qd1 {[%clk 0:04:55.4]} 4... Nf6 {[%clk 0:04:52.8]} 5. Nc3 {[%clk
0:04:54.5]} 5... e5 {[%clk 0:04:49.5]} 6. Nf3 {[%clk 0:04:53.6]} 6... Bb4 {[%clk
0:04:47.4]} 7. Bd2 {[%clk 0:04:51.6]} 7... O-O {[%clk 0:04:45.3]} 8. Bd3 {[%clk
0:04:51.1]} 8... d6 {[%clk 0:04:41.6]} 9. h3 {[%clk 0:04:48.3]} 9... h6 {[%clk
0:04:39.7]} 10. O-O {[%clk 0:04:46.8]} 10... Be6 {[%clk 0:04:37]} 11. Nd5 {[%clk
0:04:42.6]} 11... Bxd2 {[%clk 0:04:34.2]} 12. Qxd2 {[%clk 0:04:41.8]} 12... Nxd5
{[%clk 0:04:31.6]} 13. exd5 {[%clk 0:04:39.5]} 13... Bxd5 {[%clk 0:04:30.7]} 14.
Bh7+ {[%clk 0:04:38.1]} 14... Kxh7 {[%clk 0:04:29.1]} 15. Qxd5 {[%clk
0:04:37.7]} 15... Qc7 {[%clk 0:04:20.6]} 16. a3 {[%clk 0:04:32.6]} 16... Rad8
{[%clk 0:04:18.4]} 17. c3 {[%clk 0:04:31.5]} 17... f5 {[%clk 0:04:16.8]} 18. Nd2
{[%clk 0:04:14.7]} 18... e4 {[%clk 0:03:39.5]} 19. g4 {[%clk 0:03:26.6]} 19...
Ne7 {[%clk 0:03:26.7]} 20. Qd4 {[%clk 0:03:15]} 20... d5 {[%clk 0:03:24.5]} 21.
Kh1 {[%clk 0:03:05.4]} 21... fxg4 {[%clk 0:03:19.3]} 22. Rg1 {[%clk 0:03:02.7]}
22... Nf5 {[%clk 0:03:14.2]} 23. Rac1 {[%clk 0:02:16.3]} 23... Nxd4 {[%clk
0:02:49.5]} 24. cxd4 {[%clk 0:02:15.3]} 24... Qf4 {[%clk 0:02:46]} 25. Rxg4
{[%clk 0:02:10.4]} 25... Qxf2 {[%clk 0:02:41.3]} 26. Rcg1 {[%clk 0:02:09.8]}
26... Qxd2 {[%clk 0:02:36.3]} 27. Rxg7+ {[%clk 0:02:09]} 27... Kh8 {[%clk
0:02:35]} 28. R7g6 {[%clk 0:02:06.6]} 28... Rf2 {[%clk 0:02:30.6]} 29. Rxh6+
{[%clk 0:02:02.4]} 29... Qxh6 {[%clk 0:02:28.8]} 0-1